bitfinex/quotes_SOLUSD_20240909
["timestamp","ask_amount","ask_price","bid_price","bid_amount"]
[1725907638056,0.8769085,133.51,133.49,50.0]
[1725907638446,0.8769085,133.51,133.5,0.12549]
[1725907638653,0.3769085,133.51,133.5,0.12549]
[1725907640437,0.3769085,133.51,133.49,50.0]
[1725907641545,0.3769085,133.51,133.5,1.49782471]
[1725907642253,0.3769085,133.51,133.49,50.0]
[1725907642459,0.3769085,133.51,133.5,1.49789164]
[1725907643259,0.3769085,133.51,133.49,50.0]
[1725907644354,0.3769085,133.51,133.47,50.0]
[1725907644558,15.4054085,133.51,133.47,50.0]
[1725907644763,15.4054085,133.51,133.49,50.0]
[1725907645149,15.4054085,133.51,133.47,50.0]
[1725907647043,15.4054085,133.51,133.48,1.49816025]
[1725907647267,15.4054085,133.51,133.49,50.0]
[1725907648251,0.3769085,133.51,133.49,50.0]
[1725907648737,0.3769085,133.51,133.5,0.12549]
[1725907649969,0.3769085,133.51,133.47,50.0]
[1725907650147,6.8634085,133.51,133.45,50.0]
[1725907651061,6.8634085,133.51,133.47,50.0]
[1725907651362,0.3769085,133.51,133.47,50.0]
[1725907653147,0.3769085,133.51,133.46,0.12549]
[1725907653874,0.3769085,133.51,133.47,50.0]
[1725907654244,0.3769085,133.51,133.49,50.0]
[1725907654740,0.3769085,133.51,133.48,0.12549]
[1725907655139,0.3769085,133.51,133.5,50.0]
[1725907655749,0.3769085,133.51,133.48,50.12549]
[1725907656443,0.3769085,133.51,133.48,50.0]
[1725907659169,0.3769085,133.51,133.5,50.0]
[1725907661074,0.3769085,133.51,133.5,50.12549]
[1725907661579,0.3769085,133.51,133.5,95.12549]
[1725907664652,0.3769085,133.51,133.5,50.0]
[1725907667262,0.3769085,133.51,133.5,95.12549]
[1725907673078,0.3769085,133.51,133.5,50.0]
[1725907674362,0.3769085,133.51,133.5,95.12549]
[1725907675974,0.3769085,133.51,133.5,105.14081022]
[1725907677175,0.3769085,133.51,133.5,60.01532022]
[1725907678576,0.3769085,133.51,133.5,50.0]
[1725907678757,0.3769085,133.51,133.5,60.15180738]
[1725907678959,0.3769085,133.51,133.5,60.15208857]
[1725907681161,265.9,133.63,133.5,60.15208857]
[1725907681162,6.5464,133.62,133.57,50.0]
[1725907681362,0.8769085,133.65,133.61,66.4]
[1725907681363,17.2972085,133.65,133.61,66.4]
[1725907681562,17.2972085,133.65,133.64,50.0]
[1725907681975,0.8769085,133.65,133.64,50.0]
[1725907682182,0.8769085,133.65,133.64,50.12549]
[1725907682404,0.3769085,133.65,133.64,50.12549]
[1725907682567,0.3769085,133.65,133.64,95.12549]
[1725907682986,0.3769085,133.65,133.64,50.12549]
[1725907684173,0.3769085,133.65,133.64,95.12549]
[1725907684484,0.3769085,133.65,133.64,50.0]
[1725907684680,0.3769085,133.65,133.64,50.12549]
[1725907684882,0.3769085,133.65,133.64,95.12549]
[1725907685099,0.3769085,133.65,133.64,50.12549]
[1725907685391,0.3769085,133.65,133.64,50.0]
[1725907686798,0.3769085,133.65,133.62,50.0]
[1725907687776,0.3769085,133.65,133.64,50.0]
[1725907688794,0.3769085,133.65,133.62,50.0]
[1725907689598,0.3769085,133.65,133.64,50.0]
[1725907692197,0.3769085,133.65,133.64,50.12549]
[1725907696002,0.3769085,133.65,133.64,50.0]
[1725907696806,0.3769085,133.65,133.64,50.12549]
[1725907699390,0.3769085,133.65,133.64,50.0]
[1725907699612,0.3769085,133.65,133.62,50.0]
[1725907703912,0.3769085,133.65,133.63,1.49655018]
[1725907704212,0.3769085,133.65,133.64,51.49633523]
[1725907704514,0.3769085,133.65,133.64,50.0]
[1725907705714,0.3769085,133.65,133.58,9.31885494]
[1725907705715,0.3769085,133.65,133.62,50.0]
[1725907706090,0.3769085,133.65,133.6,50.0]
[1725907706287,22.6668,133.64,133.55,59.31885494]
[1725907706611,22.6668,133.64,133.55,50.0]
[1725907707713,16.1437,133.63,133.55,50.0]
[1725907707913,6.5231,133.6,133.51,50.0]
[1725907708218,6.5231,133.6,133.53,50.0]
[1725907709116,6.5231,133.6,133.56,50.0]
[1725907709323,16.1437,133.61,133.58,50.0]
[1725907710192,16.1437,133.61,133.59,1.49691582]
[1725907710915,16.1437,133.61,133.58,50.0]
[1725907711211,16.1437,133.61,133.59,1.49686471]
[1725907711992,0.3769085,133.65,133.6,50.0]
[1725907711993,15.9764,133.64,133.6,50.0]
[1725907712392,15.9764,133.64,133.61,1.49657929]
[1725907712611,15.9764,133.64,133.6,50.0]
[1725907713031,15.9764,133.64,133.62,50.0]
[1725907715031,15.9764,133.64,133.6,50.0]
[1725907715400,15.9764,133.64,133.61,1.49664964]
[1725907716212,15.9764,133.64,133.62,50.0]
[1725907719033,15.9764,133.64,133.58,1.62209235]
[1725907719034,15.9764,133.64,133.6,50.0]
[1725907719807,15.9764,133.64,133.58,50.12549]
[1725907720031,15.9764,133.64,133.58,50.0]
[1725907720319,15.9764,133.64,133.56,50.0]
[1725907720621,15.9764,133.64,133.58,50.0]
[1725907723925,15.9764,133.64,133.56,50.0]
[1725907724946,15.9764,133.64,133.58,50.0]
[1725907725514,15.9764,133.64,133.56,50.0]
[1725907725714,15.9764,133.64,133.58,50.0]
[1725907726600,15.9764,133.64,133.56,50.0]
[1725907729422,15.9764,133.64,133.58,50.0]
[1725907729810,15.9764,133.64,133.59,1.49689113]
[1725907731915,15.9764,133.64,133.58,50.0]
[1725907732916,15.7897,133.62,133.53,50.0]
[1725907733119,20.0,133.61,133.53,50.0]
[1725907733535,15.7897,133.6,133.53,50.0]
[1725907733851,6.3576,133.59,133.53,50.0]
[1725907734218,6.3576,133.59,133.51,50.0]
[1725907735139,6.3576,133.59,133.53,50.0]
[1725907737327,4.8576,133.59,133.53,50.0]
[1725907738344,4.8576,133.59,133.55,50.0]
[1725907738519,4.8576,133.59,133.56,1.49716648]
[1725907739963,15.7897,133.6,133.58,50.0]
[1725907740458,15.7897,133.6,133.56,50.0]
[1725907741422,15.7897,133.6,133.58,50.0]
[1725907743418,15.7897,133.6,133.54,50.0]
[1725907743838,15.7897,133.6,133.55,10.00010833]
[1725907744052,15.7897,133.6,133.54,50.0]
[1725907744549,15.7897,133.6,133.55,10.00156985]
[1725907744719,15.7897,133.6,133.54,50.0]
[1725907745642,15.7897,133.6,133.52,50.0]
[1725907745933,6.236,133.59,133.52,50.0]
[1725907746346,6.236,133.59,133.53,1.49751149]
[1725907746513,6.236,133.59,133.52,50.0]
[1725907747634,6.236,133.59,133.53,1.49749847]
[1725907747837,6.236,133.59,133.52,50.0]
[1725907749326,6.236,133.59,133.55,50.0]
[1725907749842,6.236,133.59,133.53,50.0]
[1725907750859,6.236,133.59,133.51,50.0]
[1725907751022,6.236,133.59,133.53,50.0]
[1725907751337,6.236,133.59,133.54,1.49751916]
[1725907751518,6.236,133.59,133.53,50.0]
[1725907752539,6.236,133.59,133.51,50.0]
[1725907752950,6.236,133.59,133.54,50.0]
[1725907753647,6.236,133.59,133.55,1.49725398]
[1725907754152,15.7897,133.6,133.56,50.0]
[1725907754933,15.7897,133.6,133.57,1.49712138]
[1725907755542,15.7897,133.6,133.56,50.0]
[1725907761827,15.7897,133.6,133.57,1.49724366]
[1725907762023,15.7897,133.6,133.56,50.0]
[1725907762645,15.7897,133.6,133.54,50.0]
[1725907763539,15.7897,133.6,133.52,50.0]
[1725907767062,15.7897,133.6,133.5,50.0]
[1725907768245,15.7897,133.6,133.52,50.0]
[1725907768836,15.7897,133.6,133.49,0.12549]
[1725907768837,15.7897,133.6,133.55,50.0]
[1725907769139,15.7897,133.6,133.57,50.0]
[1725907769446,15.7897,133.6,133.57,59.33155959]
[1725907769630,15.7897,133.6,133.57,50.0]
[1725907770263,15.7897,133.6,133.57,59.33155959]
[1725907770454,15.7897,133.6,133.57,50.0]
[1725907771259,15.7897,133.6,133.57,59.33155959]
[1725907771759,15.7897,133.6,133.57,59.32672039]
[1725907772852,15.7897,133.6,133.57,50.0]
[1725907773035,15.7897,133.6,133.56,9.32672039]
[1725907773241,15.7897,133.6,133.57,50.0]
[1725907776352,15.7897,133.6,133.59,50.0]
[1725907777157,16.3693,133.64,133.59,50.0]
[1725907778465,16.3693,133.64,133.58,9.3349717]
[1725907779158,16.3693,133.64,133.59,50.0]
[1725907780152,16.3693,133.64,133.61,50.0]
[1725907780445,16.3693,133.64,133.62,1.4966504]
[1725907783471,16.3693,133.64,133.61,51.49662793]
[1725907784376,16.3693,133.64,133.62,6.25063024]
[1725907784551,16.3693,133.64,133.63,6.25063024]
[1725907788247,0.3769085,133.65,133.63,56.25063024]
[1725907788471,0.3769085,133.65,133.64,6.25063024]
[1725907788972,0.3769085,133.65,133.64,7.74704513]
[1725907789577,0.3769085,133.65,133.64,6.25063024]
[1725907790477,0.3769085,133.65,133.64,6.24357392]
[1725907791962,0.3769085,133.65,133.63,50.0]
[1725907793152,0.3769085,133.65,133.61,50.0]
[1725907793662,0.3769085,133.65,133.59,59.30886003]
[1725907793865,0.3769085,133.65,133.59,50.0]
[1725907794063,0.3769085,133.65,133.57,50.0]
[1725907795257,0.3769085,133.65,133.59,50.0]
[1725907796155,0.3769085,133.65,133.57,50.0]
[1725907796577,0.3769085,133.65,133.56,0.12549]
[1725907796578,0.3769085,133.65,133.59,50.0]
[1725907796760,0.3769085,133.65,133.57,50.0]
[1725907797273,0.3769085,133.65,133.61,50.0]
[1725907797477,0.3769085,133.65,133.58,50.0]
[1725907799952,16.2393,133.64,133.58,50.0]
[1725907800149,6.3826,133.63,133.55,9.31373038]
[1725907800367,15.6161,133.62,133.54,50.0]
[1725907801172,15.6161,133.62,133.52,59.31373038]
[1725907801375,15.6161,133.62,133.52,50.0]
[1725907802178,15.6161,133.62,133.54,50.0]
[1725907802388,15.6161,133.62,133.55,1.4973394]
[1725907802552,15.6161,133.62,133.54,50.0]
[1725907804992,15.6161,133.62,133.53,0.12549]
[1725907805182,15.6161,133.62,133.54,50.0]
[1725907805954,15.6161,133.62,133.52,50.0]
[1725907807057,0.12549,133.61,133.52,50.0]
[1725907807276,15.0906,133.6,133.52,50.0]
[1725907809392,15.0906,133.6,133.53,1.49758543]
[1725907809590,21.4732,133.63,133.58,50.0]
[1725907809886,21.4732,133.63,133.6,50.0]
[1725907810088,15.0906,133.63,133.6,50.0]
[1725907814298,15.0906,133.63,133.61,1.49672314]
[1725907814901,15.0906,133.63,133.6,50.0]
[1725907815105,15.6339,133.66,133.62,50.0]
[1725907815283,15.6339,133.66,133.63,1.49643734]
[1725907816788,15.6339,133.66,133.64,50.0]
[1725907819883,16.6517,133.69,133.64,50.12549]
[1725907823114,16.6517,133.69,133.6,50.0]
[1725907823611,16.6517,133.69,133.62,50.0]
[1725907823812,16.6517,133.69,133.64,50.0]
[1725907824416,16.6517,133.69,133.62,50.0]
[1725907825293,16.6517,133.69,133.63,1.49641861]
[1725907825615,16.6517,133.69,133.62,50.0]
[1725907830400,6.3627,133.7,133.6,50.0]
[1725907830401,15.1478,133.64,133.6,50.0]
[1725907831195,15.1478,133.64,133.6,51.49678235]
[1725907831398,15.1478,133.64,133.6,50.0]
[1725907831994,15.1478,133.64,133.59,0.12549]
[1725907833108,15.1478,133.64,133.6,50.0]
[1725907833504,15.1478,133.64,133.62,50.0]
[1725907834523,15.1478,133.64,133.6,50.0]
[1725907834711,15.1478,133.64,133.56,6.1326]
[1725907834712,15.1478,133.64,133.58,50.0]
[1725907834915,6.0109,133.63,133.58,50.0]
[1725907835308,6.0109,133.63,133.56,50.0]
[1725907836590,6.0109,133.63,133.57,0.12549]
[1725907836796,6.0109,133.63,133.56,50.0]
[1725907838423,15.5942,133.62,133.54,59.30972285]
[1725907840126,15.5942,133.62,133.54,50.0]
[1725907840515,15.5942,133.62,133.55,1.4972129]
[1725907840825,15.5942,133.62,133.54,59.30972285]
[1725907841326,15.5942,133.62,133.54,59.30776828]
[1725907842123,15.5942,133.62,133.56,50.0]
[1725907842328,15.5942,133.62,133.57,1.49703729]
[1725907842525,15.5942,133.62,133.57,1.49703616]
[1725907842718,15.5942,133.62,133.58,50.0]
[1725907843025,15.5942,133.62,133.6,50.0]
[1725907843412,15.5942,133.62,133.58,50.0]
[1725907844526,15.5942,133.62,133.59,1.49686797]
[1725907845612,15.5942,133.62,133.58,50.0]
[1725907847427,15.5942,133.62,133.6,50.0]
[1725907847623,16.3510085,133.65,133.6,50.0]
[1725907847803,16.3510085,133.65,133.61,1.49660111]
[1725907848130,16.3510085,133.65,133.6,50.0]
[1725907851824,16.3510085,133.65,133.57,9.30449289]
[1725907851825,16.3510085,133.65,133.58,50.0]
[1725907852421,16.3510085,133.65,133.6,50.0]
[1725907852743,16.3510085,133.65,133.61,1.49671361]
[1725907853044,16.3510085,133.65,133.58,50.0]
[1725907854633,26.2604,133.64,133.56,9.30449289]
[1725907854814,26.2604,133.64,133.53,9.56734458]
[1725907854815,61.1115,133.63,133.53,50.0]
[1725907855138,16.1115,133.61,133.54,50.0]
[1725907855517,16.1115,133.61,133.55,1.49717947]
[1725907856033,16.1115,133.61,133.54,50.0]
[1725907856232,6.2604,133.6,133.52,50.0]
[1725907856543,51.2604,133.6,133.52,50.0]
[1725907857242,51.2604,133.6,133.48,50.0]
[1725907857243,36.1115,133.59,133.48,50.0]
[1725907857543,45.0,133.58,133.5,50.0]
[1725907857843,36.1115,133.59,133.5,50.0]
[1725907858153,36.1115,133.59,133.51,1.49777744]
[1725907858352,36.1115,133.59,133.52,1.49767076]
[1725907858645,36.1115,133.59,133.5,50.0]
[1725907860333,16.1115,133.59,133.54,50.0]
[1725907861118,16.1115,133.59,133.52,0.12549]
[1725907861537,16.1115,133.59,133.51,0.12549]
[1725907862120,16.1115,133.59,133.5,50.0]
[1725907862317,6.38589,133.6,133.48,50.0]
[1725907862318,15.8894,133.57,133.48,50.0]
[1725907863222,6.0501,133.55,133.48,50.0]
[1725907864135,6.0501,133.55,133.49,1.4980844]
[1725907864854,6.0501,133.55,133.48,50.0]
[1725907865242,15.8894,133.57,133.54,50.0]
[1725907865447,15.8894,133.57,133.52,50.0]
[1725907865835,15.8894,133.57,133.54,50.0]
[1725907866037,21.2642,133.64,133.55,1.49731672]
[1725907866235,21.2642,133.64,133.56,1.49720141]
[1725907866547,21.2642,133.64,133.56,51.49720141]
[1725907866756,21.2642,133.64,133.57,1.49715022]
[1725907867740,21.2642,133.64,133.56,50.0]
[1725907868360,21.2642,133.64,133.57,1.49707967]
[1725907868533,21.2642,133.64,133.58,1.49705905]
[1725907868732,21.2642,133.64,133.56,50.0]
[1725907869043,21.2642,133.64,133.57,1.49702607]
[1725907869551,21.2642,133.64,133.58,1.49702611]
[1725907869748,21.2642,133.64,133.56,50.0]
[1725907870261,20.0,133.63,133.54,50.0]
[1725907870432,65.0,133.63,133.54,50.0]
[1725907871443,0.12549,133.62,133.52,50.0]
[1725907872232,16.1136,133.61,133.52,50.0]
[1725907872461,45.0,133.6,133.52,50.0]
[1725907873542,20.0,133.59,133.52,50.0]
[1725907874663,20.0,133.59,133.5,50.0]
[1725907875563,0.12549,133.58,133.5,50.0]
[1725907875861,45.12549,133.58,133.5,50.0]
[1725907876357,45.12549,133.58,133.47,22.1602]
[1725907876358,6.2278,133.57,133.48,50.0]
[1725907876534,15.1043,133.56,133.48,50.0]
[1725907877043,15.1043,133.56,133.5,50.0]
[1725907878452,15.1043,133.56,133.48,50.0]
[1725907880436,45.12549,133.55,133.46,50.0]
[1725907880641,20.0,133.54,133.46,50.0]
[1725907881953,20.0,133.54,133.44,50.0]
[1725907882154,16.0922,133.52,133.44,50.0]
[1725907882545,6.0747,133.51,133.44,50.0]
[1725907884069,65.0,133.5,133.42,50.0]
[1725907884235,15.5642,133.49,133.4,50.0]
[1725907884442,45.0,133.48,133.4,50.0]
[1725907884849,15.5642,133.49,133.42,50.0]
[1725907885260,15.5642,133.49,133.44,50.0]
[1725907885744,15.5642,133.49,133.42,50.0]
[1725907885947,15.5642,133.49,133.43,0.12549]
[1725907886966,15.5642,133.49,133.44,50.0]
[1725907887577,15.5642,133.49,133.46,50.0]
[1725907887778,15.5642,133.49,133.45,0.12549]
[1725907889695,15.5642,133.49,133.46,50.0]
[1725907889857,15.5642,133.49,133.44,50.0]
[1725907890383,15.5642,133.49,133.46,50.0]
[1725907890672,15.8949,133.53,133.48,50.0]
[1725907890877,15.8949,133.53,133.49,1.49805124]
[1725907891074,15.8949,133.53,133.48,50.0]
[1725907891583,15.8949,133.53,133.49,1.49806775]
[1725907892277,15.8949,133.53,133.47,0.12549]
[1725907892593,15.8949,133.53,133.48,50.0]
[1725907892783,15.8949,133.53,133.47,0.12549]
[1725907894090,15.8949,133.53,133.46,50.0]
[1725907894657,15.8949,133.53,133.45,0.12549]
[1725907894858,45.0,133.52,133.44,50.0]
[1725907895556,20.0,133.51,133.42,50.0]
[1725907896462,15.8949,133.53,133.46,50.0]
[1725907896677,20.0,133.52,133.46,50.0]
[1725907896889,20.0,133.52,133.44,50.0]
[1725907897067,20.0,133.52,133.45,0.12549]
[1725907897375,15.8949,133.53,133.46,50.0]
[1725907897677,15.8949,133.53,133.47,1.4982653]
[1725907899481,15.8949,133.53,133.46,50.0]
[1725907900886,15.8949,133.53,133.44,50.0]
[1725907900887,45.0,133.52,133.44,50.0]
[1725907901093,45.0,133.52,133.45,1.49847453]
[1725907901597,45.0,133.52,133.44,50.0]
[1725907901768,15.8949,133.53,133.44,50.0]
[1725907902969,15.8949,133.53,133.45,1.62387292]
[1725907903170,15.8949,133.53,133.46,1.49830266]
[1725907903485,15.8949,133.53,133.44,50.0]
[1725907904098,15.8949,133.53,133.46,50.0]
[1725907904390,15.8949,133.53,133.47,1.49827919]
[1725907906474,15.8949,133.53,133.46,50.0]
[1725907907376,15.8949,133.53,133.48,50.0]
[1725907907691,15.6108,133.57,133.5,50.0]
[1725907907892,15.6108,133.57,133.51,1.49779095]
[1725907909062,20.0,133.56,133.51,1.49779095]
[1725907910692,20.0,133.56,133.5,50.0]
[1725907912970,20.0,133.56,133.48,50.0]
[1725907913393,20.0,133.56,133.49,6.25704118]
[1725907913592,20.0,133.56,133.48,50.0]
[1725907913794,20.0,133.56,133.49,6.25594397]
[1725907913992,20.0,133.56,133.48,50.0]
[1725907914193,20.0,133.56,133.49,6.25562441]
[1725907914493,20.0,133.56,133.5,6.25562441]
[1725907914690,45.0,133.55,133.48,50.0]
[1725907915001,45.0,133.55,133.49,7.75374477]
[1725907915180,45.0,133.55,133.5,6.25565991]
[1725907915379,45.0,133.55,133.46,50.0]
[1725907915596,45.0,133.55,133.47,7.75490628]
[1725907915895,45.0,133.55,133.48,6.25677821]
[1725907916076,45.0,133.55,133.49,6.25677821]
[1725907916280,20.12549,133.54,133.44,56.113]
[1725907916490,45.0,133.53,133.45,6.25601082]
[1725907916795,45.0,133.53,133.46,6.25601082]
[1725907916969,45.0,133.53,133.47,6.25601082]
[1725907917176,45.0,133.53,133.48,6.25601082]
[1725907917480,45.0,133.53,133.49,6.25575959]
[1725907917676,45.0,133.53,133.45,0.12549]
[1725907917895,45.0,133.53,133.46,6.25578121]
[1725907918193,20.0,133.54,133.47,7.75409469]
[1725907918502,20.12549,133.56,133.48,6.25578121]
[1725907918676,45.0,133.55,133.49,6.25578121]
[1725907918880,20.0,133.54,133.5,6.25578121]
[1725907919081,20.0,133.54,133.47,1.49831348]
[1725907919281,20.0,133.54,133.48,6.25556298]
[1725907919485,20.0,133.54,133.49,6.25556298]
[1725907919683,20.0,133.54,133.5,6.25556298]
[1725907919867,20.0,133.54,133.48,50.0]
[1725907920299,20.0,133.54,133.49,6.25555456]
[1725907920510,45.0,133.55,133.49,1.49805229]
[1725907920801,45.0,133.56,133.49,1.49805229]
[1725907920975,20.0,133.55,133.49,1.49805229]
[1725907921491,20.0,133.55,133.48,50.0]
[1725907923674,20.0,133.55,133.46,50.0]
[1725907924702,20.0,133.55,133.47,1.49815655]
[1725907925080,20.0,133.55,133.46,50.0]
[1725907925280,20.0,133.55,133.47,1.4980868]
[1725907925594,15.6108,133.57,133.49,50.0]
[1725907925798,20.0,133.56,133.5,1.49786047]
[1725907926197,15.6108,133.57,133.51,51.49786113]
[1725907926508,15.6108,133.57,133.52,1.49769194]
[1725907927592,15.1625,133.6,133.52,1.49769194]
[1725907927798,15.1625,133.6,133.53,50.0]
[1725907929112,0.12549,133.57,133.46,50.0]
[1725907929420,0.12549,133.55,133.45,50.0]
[1725907929595,65.12549,133.55,133.45,50.0]
[1725907929786,65.12549,133.55,133.44,6.2562]
[1725907930091,0.12549,133.53,133.43,50.0]
[1725907930301,65.12549,133.53,133.43,50.0]
[1725907931493,65.0,133.53,133.45,50.0]
[1725907934217,16.0466,133.52,133.42,50.0]
[1725907934391,20.0,133.51,133.44,50.0]
[1725907934585,16.0466,133.52,133.45,1.49830465]
[1725907934794,16.0466,133.52,133.46,51.49831601]
[1725907934993,16.0466,133.52,133.47,1.49823833]
[1725907935297,16.0466,133.52,133.48,50.0]
[1725907935491,16.0466,133.52,133.46,50.0]
[1725907935887,16.0466,133.52,133.47,1.62365458]
[1725907936191,16.0466,133.52,133.46,50.0]
[1725907937413,16.0466,133.52,133.45,0.12549]
[1725907937999,16.0466,133.52,133.46,50.0]
[1725907938314,16.0466,133.52,133.47,0.12549]
[1725907938508,16.0466,133.52,133.48,50.0]
[1725907940141,6.2982,133.54,133.47,0.12549]
[1725907940142,21.734,133.58,133.52,50.0]
[1725907940297,15.4638,133.58,133.53,1.49748207]
[1725907941528,15.4638,133.58,133.52,50.0]
[1725907942611,15.4638,133.58,133.5,50.0]
[1725907943327,15.4638,133.58,133.49,0.12549]
[1725907943328,15.4638,133.58,133.52,50.0]
[1725907943802,15.4638,133.58,133.5,50.0]
[1725907945842,6.6478,133.57,133.45,50.0]
[1725907946003,20.0,133.56,133.47,50.0]
[1725907946314,0.12549,133.55,133.45,50.0]
[1725907946524,45.12549,133.55,133.45,50.0]
[1725907946722,20.0,133.54,133.45,50.0]
[1725907947507,20.0,133.54,133.46,1.62367694]
[1725907947828,20.0,133.54,133.46,0.12549]
[1725907948035,20.0,133.54,133.47,50.0]
[1725907948814,20.0,133.54,133.49,50.0]
[1725907949017,20.0,133.56,133.49,50.0]
[1725907949727,20.0,133.56,133.47,50.0]
[1725907949936,45.0,133.55,133.46,0.12549]
[1725907950109,45.0,133.55,133.46,1.62357519]
[1725907950315,45.0,133.55,133.47,50.0]
[1725907950622,45.0,133.55,133.45,50.0]
[1725907950934,35.2855,133.54,133.45,50.0]
[1725907953412,45.0,133.53,133.45,50.0]
[1725907955843,6.09,133.52,133.45,50.0]
[1725907957827,6.09,133.52,133.43,50.0]
[1725907958042,15.0858,133.51,133.43,50.0]
[1725907961028,20.0,133.5,133.42,0.12549]
[1725907964221,16.5433,133.49,133.41,50.0]
[1725907966639,51.59499,133.48,133.39,50.0]
[1725907966842,51.4695,133.48,133.41,50.0]
[1725907967042,6.4695,133.48,133.41,50.0]
[1725907968726,6.4695,133.48,133.42,1.49878824]
[1725907969149,6.4695,133.48,133.41,50.0]
[1725907970056,6.4695,133.48,133.42,1.49874335]
[1725907970244,6.4695,133.48,133.41,50.0]
[1725907970434,6.4695,133.48,133.42,1.49880609]
[1725907971341,6.4695,133.48,133.43,1.49878523]
[1725907971653,6.4695,133.48,133.41,50.0]
[1725907978151,6.4695,133.48,133.43,50.0]
[1725907980367,6.4695,133.48,133.41,50.0]
[1725907980669,6.4695,133.48,133.42,6.19879067]
[1725907980867,6.4695,133.48,133.43,6.19879067]
[1725907981048,6.4695,133.48,133.41,50.0]
[1725907981247,6.4695,133.48,133.42,6.20657689]
[1725907981464,6.4695,133.48,133.43,6.20657689]
[1725907981658,6.4695,133.48,133.41,50.0]
[1725907981859,6.4695,133.48,133.42,6.20892747]
[1725907982061,6.4695,133.48,133.43,6.20892747]
[1725907982256,6.4695,133.48,133.41,50.0]
[1725907982465,6.4695,133.48,133.42,6.21030802]
[1725907982766,6.4695,133.48,133.43,6.21030802]
[1725907982937,16.6392,133.46,133.38,50.0]
[1725907983138,16.6392,133.46,133.39,6.21503865]
[1725907983359,16.6392,133.46,133.41,50.0]
[1725907983663,16.6392,133.46,133.42,7.71375244]
[1725907983845,16.6392,133.46,133.41,50.0]
[1725907984044,16.6392,133.46,133.42,6.21348829]
[1725907984246,16.6392,133.46,133.39,50.0]
[1725907984442,16.6392,133.46,133.4,6.21324998]
[1725907984660,16.6392,133.46,133.41,6.21324998]
[1725907984852,16.6392,133.46,133.39,50.0]
[1725907985172,16.6392,133.46,133.4,6.21467593]
[1725907985465,16.6392,133.46,133.41,6.21467593]
[1725907985646,16.6392,133.46,133.39,50.0]
[1725907985846,16.6392,133.46,133.4,6.21435871]
[1725907986154,16.6392,133.46,133.39,50.0]
[1725907986351,16.6392,133.46,133.4,6.21414168]
[1725907986551,16.6392,133.46,133.4,6.21444235]
[1725907986756,16.6392,133.46,133.39,50.0]
[1725907987069,16.6392,133.46,133.4,6.21553194]
[1725907987269,16.6392,133.46,133.41,6.21553194]
[1725907987470,16.6392,133.46,133.39,50.0]
[1725907987771,16.6392,133.46,133.4,6.21545007]
[1725907988067,16.6392,133.46,133.41,6.21545007]
[1725907988262,6.23699,133.45,133.36,50.0]
[1725907988457,26.1115,133.45,133.36,50.0]
[1725907988851,26.1115,133.45,133.38,50.0]
[1725907989572,24.02151812,133.49,133.45,50.0]
[1725907989785,24.02151812,133.49,133.47,50.0]
[1725907989949,7.83371812,133.49,133.48,0.12549]
[1725907990277,255.9,133.6,133.52,50.0]
[1725907990278,22.1892,133.57,133.52,50.0]